{"text_format":"1","workbook":"xlsx","n_sheets":3,"sheets":["入力ﾌｫｰﾑ","請求書","マニュアル"],"not_rendered":{"charts":0,"images":0,"macros":1,"external_links":0,"defined_names":3,"comments":0,"pivot_tables":0},"unopened":[],"bounds":{"document_bytes":16777216,"sheet_cells":100000,"rows_first":2000,"rows_last":500,"rows_between":2000,"halvings":0,"cell_chars":16384,"cell_head_chars":4096},"cells_cut":0,"cells_raw":0,"read":"whole","date_system":"1900"}

{"sheet":"入力ﾌｫｰﾑ","index":0,"n_rows":45,"n_cols":135,"rows_kept":45,"cut":false,"hidden":false,"merged":[[28,59,29,71],[30,59,31,71],[28,82,29,97],[30,82,31,97],[32,82,33,97],[32,1,33,81],[28,1,29,4],[28,72,29,81],[30,1,31,4],[30,72,31,81],[30,5,31,58],[28,5,29,58],[3,118,4,119],[3,120,4,125],[3,126,4,127],[3,128,4,133],[3,134,4,135],[7,100,8,106],[7,107,8,109],[7,110,8,112],[7,113,8,115],[7,116,8,118],[7,119,8,121],[7,122,8,124],[7,125,8,127],[0,1,1,37],[0,39,1,42],[0,53,1,97],[4,1,5,16],[4,17,5,52],[4,54,5,58],[4,59,5,97],[3,100,4,105],[3,106,4,117],[6,17,7,52],[6,54,7,58],[6,59,7,94],[6,95,7,97],[3,1,3,37],[3,54,3,58],[3,59,3,61],[3,62,3,64],[3,65,3,67],[3,68,3,70],[3,71,3,73],[3,74,3,76],[3,77,3,79],[3,80,3,82],[3,83,3,85],[3,86,3,88],[3,89,3,91],[3,92,3,94],[3,95,3,97],[6,1,7,16],[9,100,10,119],[9,120,10,135],[11,100,12,103],[12,82,13,97],[14,82,15,97],[11,104,12,107],[11,108,12,111],[11,112,12,115],[11,116,12,119],[11,120,12,123],[11,124,12,127],[11,128,12,131],[11,132,12,135],[12,72,13,81],[14,72,15,81],[8,1,9,16],[8,17,9,52],[8,54,9,58],[8,59,9,97],[12,1,13,4],[14,1,15,4],[16,82,17,97],[11,72,11,84],[10,72,10,84],[10,85,11,97],[10,1,11,11],[14,5,15,58],[16,5,17,58],[10,12,11,16],[10,17,11,27],[10,28,11,71],[12,5,13,58],[12,59,13,71],[14,59,15,71],[16,59,17,71],[16,1,17,4],[18,1,19,4],[20,1,21,4],[22,1,23,4],[24,1,25,4],[26,1,27,4],[26,72,27,81],[16,72,17,81],[18,72,19,81],[20,72,21,81],[22,72,23,81],[24,72,25,81],[22,59,23,71],[24,59,25,71],[26,59,27,71],[18,82,19,97],[20,82,21,97],[18,5,19,58],[20,5,21,58],[22,5,23,58],[24,5,25,58],[26,5,27,58],[18,59,19,71],[20,59,21,71],[24,82,25,97],[26,82,27,97],[22,82,23,97]]}
[null,"エヌテックサービス株式会社",null,null,null,null,null,null,null,null,null,null,null,null,null,null,null,null,null,null,null,null,null,null,null,null,null,null,null,null,null,null,null,null,null,null,null,null,null,"御中",null,null,null,null,null,null,null,null,null,null,null,null,null,"請求書(材料・経費)"]
[]
[]
[null,"下記のとおり請求致します。",null,null,null,null,null,null,null,null,null,null,null,null,null,null,null,null,null,null,null,null,null,null,null,null,null,null,null,null,null,null,null,null,null,null,null,null,null,null,null,null,null,null,null,null,null,null,null,null,null,null,null,null,"T",null,null,null,null,null,null,null,null,null,null,null,null,null,null,null,null,null,null,null,null,null,null,null,null,null,null,null,null,null,null,null,null,null,null,null,null,null,null,null,null,null,null,null,null,null,"請求日\n(西暦)",null,null,null,null,null,null,null,null,null,null,null,null,null,null,null,null,null,"年",null,null,null,null,null,null,null,"月",null,null,null,null,null,null,null,"日"]
[null,"今回請求金額",null,null,null,null,null,null,null,null,null,null,null,null,null,null,null,{"$f":"IFERROR(R7+R9,\"\")","v":""},null,null,null,null,null,null,null,null,null,null,null,null,null,null,null,null,null,null,null,null,null,null,null,null,null,null,null,null,null,null,null,null,null,null,null,null,"住所"]
[]
[null,"Ｄ当月請求額",null,null,null,null,null,null,null,null,null,null,null,null,null,null,null,{"$f":"IF(CE33=0,\"\",CE33)","v":""},null,null,null,null,null,null,null,null,null,null,null,null,null,null,null,null,null,null,null,null,null,null,null,null,null,null,null,null,null,null,null,null,null,null,null,null,"社名"]
[null,null,null,null,null,null,null,null,null,null,null,null,null,null,null,null,null,null,null,null,null,null,null,null,null,null,null,null,null,null,null,null,null,null,null,null,null,null,null,null,null,null,null,null,null,null,null,null,null,null,null,null,null,null,null,null,null,null,null,null,null,null,null,null,null,null,null,null,null,null,null,null,null,null,null,null,null,null,null,null,null,null,null,null,null,null,null,null,null,null,null,null,null,null,null,null,null,null,null,null,"工事№"]
[null,"消費税",null,null,null,null,null,null,null,null,null,null,null,null,null,null,null,{"$f":"IFERROR(ROUNDDOWN(R7*M11,0),\"\")","v":""},null,null,null,null,null,null,null,null,null,null,null,null,null,null,null,null,null,null,null,null,null,null,null,null,null,null,null,null,null,null,null,null,null,null,null,null,"TEL"]
[null,null,null,null,null,null,null,null,null,null,null,null,null,null,null,null,null,null,null,null,null,null,null,null,null,null,null,null,null,null,null,null,null,null,null,null,null,null,null,null,null,null,null,null,null,null,null,null,null,null,null,null,null,null,null,null,null,null,null,null,null,null,null,null,null,null,null,null,null,null,null,null,null,null,null,null,null,null,null,null,null,null,null,null,null,null,null,null,null,null,null,null,null,null,null,null,null,null,null,null,"取引先コード",null,null,null,null,null,null,null,null,null,null,null,null,null,null,null,null,null,null,null,"注文№"]
[null,"消費税率",null,null,null,null,null,null,null,null,null,null,null,null,null,null,null,"工事名称",null,null,null,null,null,null,null,null,null,null,null,null,null,null,null,null,null,null,null,null,null,null,null,null,null,null,null,null,null,null,null,null,null,null,null,null,null,null,null,null,null,null,null,null,null,null,null,null,null,null,null,null,null,null,"ｴﾇﾃｯｸｻｰﾋﾞｽ㈱"]
[null,null,null,null,null,null,null,null,null,null,null,null,null,null,null,null,null,null,null,null,null,null,null,null,null,null,null,null,null,null,null,null,null,null,null,null,null,null,null,null,null,null,null,null,null,null,null,null,null,null,null,null,null,null,null,null,null,null,null,null,null,null,null,null,null,null,null,null,null,null,null,null,"現場担当者名"]
[null,"月日",null,null,null,"品　　目",null,null,null,null,null,null,null,null,null,null,null,null,null,null,null,null,null,null,null,null,null,null,null,null,null,null,null,null,null,null,null,null,null,null,null,null,null,null,null,null,null,null,null,null,null,null,null,null,null,null,null,null,null,"数量",null,null,null,null,null,null,null,null,null,null,null,null,"単価",null,null,null,null,null,null,null,null,null,"金　額"]
[]
[]
[]
[]
[]
[]
[]
[]
[]
[]
[]
[]
[]
[]
[]
[]
[]
[]
[]
[null,"計",null,null,null,null,null,null,null,null,null,null,null,null,null,null,null,null,null,null,null,null,null,null,null,null,null,null,null,null,null,null,null,null,null,null,null,null,null,null,null,null,null,null,null,null,null,null,null,null,null,null,null,null,null,null,null,null,null,null,null,null,null,null,null,null,null,null,null,null,null,null,null,null,null,null,null,null,null,null,null,null,{"$f":"SUM(CE15:CE31)","v":0}]
[]
[null,"請求書の記入について",null,null,null,null,null,null,null,null,null,null,null,null,null,null,null,null,null,null,null,null,"ご不明な点は、弊社担当者とお打ち合わせの上、入力又は記入してください。"]
[null,"1.",null,"この請求書は工事ごとに、注文書別に記入して提出してください。(工事№・工事名は注文書を参照、又は弊社担当者へお問い合わせください。)"]
[null,"2.",null,"毎月、月末締めにて翌月第3営業日までに、弊社事務所または現場担当者へ提出してください。提出が遅れた場合は、次月のお支払いとなります。"]
[null,null,null,"(郵送の場合も同様にてお願いします。)"]
[null,"3.",null,"請求書は、電子入力または手書きとし、原本1部を弊社に提出してください。(①提出用での提出をお願いします。)"]
[null,"4.",null,"品目他、入力フォームの白欄は記入をお願いします。不明瞭な箇所がある場合は支払の保留、又は請求書の再提出をお願いする場合があります。"]
[null,null,null,"なお、注文№は、請求対象について注文書を受領している場合のみ記入してください。"]
[null,"5.",null,"手書きの場合、黒ボールペンを使用し枠内からはみ出さないよう鮮明に記入してください。熱で消えるタイプのボールペンは使用しないでください。"]
[null,"6.",null,"当月請求金額、内訳の金額等は税抜金額で記入し、消費税額を計算し消費税欄に記入してください。消費税額の円未満は切り捨てにて計算してください。"]
[null,"7.",null,"中間払い時は、累計出来高金額×90％、1,000円未満切り捨てにて計算してください。"]
[null,"8.",null,"出来高内訳書(弊社書式)は、2部添付してください。尚、未契約の小工事は、内訳を品目欄に記入してください。"]

{"sheet":"請求書","index":1,"n_rows":88,"n_cols":144,"rows_kept":88,"cut":false,"hidden":false,"merged":[[28,1,29,4],[39,53,40,57],[26,1,27,4],[12,1,13,4],[14,1,15,4],[16,1,17,4],[18,1,19,4],[37,58,38,62],[26,5,27,58],[28,5,29,58],[30,5,31,58],[12,5,13,58],[12,59,13,71],[14,59,15,71],[16,59,17,71],[18,59,19,71],[20,59,21,71],[22,59,23,71],[24,59,25,71],[26,59,27,71],[28,59,29,71],[30,59,31,71],[35,1,42,35],[34,1,34,35],[75,82,76,97],[75,1,76,81],[71,72,72,81],[73,1,74,4],[73,72,74,81],[71,1,72,4],[71,5,72,58],[71,59,72,71],[73,5,74,58],[73,59,74,71],[41,79,42,82],[37,77,38,79],[37,80,38,82],[39,38,40,40],[39,50,40,52],[71,82,72,97],[73,82,74,97],[43,1,44,37],[43,39,44,42],[37,93,38,97],[59,82,60,97],[65,1,66,4],[67,1,68,4],[57,1,58,4],[69,1,70,4],[49,49,50,52],[67,5,68,58],[67,59,68,71],[69,5,70,58],[69,59,70,71],[59,5,60,58],[59,59,60,71],[49,54,50,58],[49,59,50,94],[34,83,34,97],[35,38,36,40],[35,50,36,52],[35,53,36,57],[35,58,36,62],[35,63,36,67],[37,71,38,73],[35,41,36,43],[39,58,40,62],[39,63,40,67],[39,68,40,70],[39,71,40,73],[39,74,40,76],[39,77,40,79],[39,80,40,82],[37,68,38,70],[37,38,38,40],[37,41,38,43],[37,44,38,46],[37,47,38,49],[37,50,38,52],[37,74,38,76],[39,41,40,43],[39,44,40,46],[38,122,38,129],[35,143,36,144],[38,130,38,145],[38,106,38,113],[38,114,38,121],[39,106,42,113],[39,114,42,121],[35,44,36,46],[35,47,36,49],[39,88,40,92],[37,83,38,87],[39,83,40,87],[41,83,42,87],[41,88,42,92],[41,93,42,97],[35,71,36,73],[35,74,36,76],[35,77,36,79],[35,80,36,82],[35,83,36,87],[35,88,36,92],[35,93,36,97],[39,47,40,49],[39,93,40,97],[7,137,8,139],[7,140,8,142],[7,143,8,145],[11,136,12,145],[29,106,30,130],[31,106,32,130],[7,125,8,127],[7,134,8,136],[11,128,12,131],[11,132,12,135],[11,104,12,107],[11,108,12,111],[11,112,12,115],[11,116,12,119],[11,120,12,123],[11,124,12,127],[31,143,32,145],[29,131,30,145],[31,131,32,133],[31,134,32,136],[31,137,32,139],[31,140,32,142],[54,116,55,119],[54,120,55,123],[54,124,55,127],[54,128,55,131],[50,113,51,115],[50,116,51,118],[9,100,10,119],[9,120,10,135],[9,136,10,145],[11,100,12,103],[50,119,51,121],[50,122,51,124],[39,130,42,137],[39,138,42,145],[35,129,36,130],[35,139,36,142],[35,135,36,138],[35,131,36,134],[47,137,47,145],[33,106,34,120],[33,121,34,145],[35,121,36,128],[35,106,36,120],[39,122,42,129],[46,100,47,105],[46,106,47,117],[46,118,47,119],[46,120,47,125],[46,126,47,127],[46,128,47,133],[46,134,47,135],[46,80,46,82],[46,83,46,85],[46,86,46,88],[46,89,46,91],[46,92,46,94],[46,95,46,97],[47,59,48,97],[46,74,46,76],[46,77,46,79],[46,71,46,73],[54,132,55,135],[3,100,4,105],[3,106,4,117],[3,118,4,119],[3,120,4,125],[3,126,4,127],[3,128,4,133],[3,134,4,135],[4,137,4,145],[50,125,51,127],[7,113,8,115],[7,116,8,118],[7,119,8,121],[7,122,8,124],[7,128,8,133],[7,107,8,109],[7,110,8,112],[7,100,8,106],[52,100,53,119],[52,120,53,135],[54,100,55,103],[50,100,51,106],[50,107,51,109],[54,112,55,115],[54,104,55,107],[54,108,55,111],[50,110,51,112],[61,5,62,58],[61,59,62,71],[63,5,64,58],[63,59,64,71],[65,5,66,58],[65,59,66,71],[61,72,62,81],[61,82,62,97],[49,1,50,16],[53,1,54,11],[53,12,54,16],[53,17,54,30],[53,31,54,71],[55,5,56,58],[55,59,56,71],[57,5,58,58],[57,59,58,71],[49,33,50,36],[49,37,50,40],[49,41,50,44],[49,45,50,48],[61,1,62,4],[49,17,50,20],[49,21,50,24],[49,25,50,28],[49,29,50,32],[51,25,52,28],[51,29,52,32],[51,33,52,36],[65,72,66,81],[59,1,60,4],[0,1,1,37],[0,39,1,42],[3,95,3,97],[3,1,3,37],[3,54,3,58],[3,59,3,61],[3,62,3,64],[3,65,3,67],[3,68,3,70],[3,71,3,73],[3,74,3,76],[3,77,3,79],[0,54,1,97],[3,80,3,82],[3,83,3,85],[3,86,3,88],[3,89,3,91],[3,92,3,94],[4,49,5,52],[4,54,5,58],[4,59,5,97],[6,41,7,44],[6,45,7,48],[6,49,7,52],[6,54,7,58],[4,1,5,16],[4,17,5,20],[6,95,7,97],[4,37,5,40],[4,41,5,44],[4,45,5,48],[6,59,7,94],[6,33,7,36],[4,21,5,24],[4,25,5,28],[4,29,5,32],[4,33,5,36],[6,1,7,16],[6,17,7,20],[6,21,7,24],[6,25,7,28],[6,29,7,32],[6,37,7,40],[10,72,10,84],[8,59,9,97],[10,85,11,97],[8,21,9,24],[8,25,9,28],[8,29,9,32],[8,33,9,36],[8,1,9,16],[8,17,9,20],[10,12,11,16],[10,17,11,30],[10,31,11,71],[11,72,11,84],[26,72,27,81],[14,5,15,58],[16,5,17,58],[18,5,19,58],[37,53,38,57],[10,1,11,11],[8,37,9,40],[8,41,9,44],[8,45,9,48],[8,49,9,52],[8,54,9,58],[37,63,38,67],[34,38,34,52],[34,53,34,67],[34,68,34,82],[35,68,36,70],[28,72,29,81],[28,82,29,97],[30,1,31,4],[30,72,31,81],[30,82,31,97],[32,82,33,97],[32,1,33,81],[37,88,38,92],[20,1,21,4],[22,1,23,4],[24,1,25,4],[12,72,13,81],[12,82,13,97],[14,72,15,81],[14,82,15,97],[16,72,17,81],[16,82,17,97],[18,72,19,81],[18,82,19,97],[20,72,21,81],[20,82,21,97],[22,72,23,81],[22,82,23,97],[20,5,21,58],[22,5,23,58],[24,5,25,58],[46,1,46,37],[46,54,46,58],[46,59,46,61],[51,1,52,16],[51,17,52,20],[51,21,52,24],[47,49,48,52],[47,54,48,58],[47,45,48,48],[51,37,52,40],[51,41,52,44],[51,45,52,48],[51,49,52,52],[51,54,52,58],[51,59,52,97],[49,95,50,97],[47,1,48,16],[47,17,48,20],[47,21,48,24],[47,25,48,28],[47,29,48,32],[47,33,48,36],[47,37,48,40],[47,41,48,44],[69,82,70,97],[55,1,56,4],[63,1,64,4],[59,72,60,81],[65,82,66,97],[63,72,64,81],[63,82,64,97],[69,72,70,81],[24,72,25,81],[24,82,25,97],[55,72,56,81],[55,82,56,97],[57,72,58,81],[57,82,58,97],[67,72,68,81],[67,82,68,97],[26,82,27,97],[53,72,53,84],[53,85,54,97],[54,72,54,84],[43,54,44,97],[46,62,46,64],[46,65,46,67],[46,68,46,70]]}
[null,"エヌテックサービス株式会社",null,null,null,null,null,null,null,null,null,null,null,null,null,null,null,null,null,null,null,null,null,null,null,null,null,null,null,null,null,null,null,null,null,null,null,null,null,"御中",null,null,null,null,null,null,null,null,null,null,null,null,null,"請求書(材料・経費)","請求書(材料・経費)"]
[]
[]
[null,"下記のとおり請求致します。",null,null,null,null,null,null,null,null,null,null,null,null,null,null,null,null,null,null,null,null,null,null,null,null,null,null,null,null,null,null,null,null,null,null,null,null,null,null,null,null,null,null,null,null,null,null,null,null,null,null,null,null,"T",null,null,null,null,{"$f":"IF(SUM(入力ﾌｫｰﾑ!BH4:'入力ﾌｫｰﾑ'!CR4)=0,\"\",入力ﾌｫｰﾑ!BH4)","v":""},null,null,{"$f":"IF(SUM(入力ﾌｫｰﾑ!BH4:'入力ﾌｫｰﾑ'!CR4)=0,\"\",入力ﾌｫｰﾑ!BK4)","v":""},null,null,{"$f":"IF(SUM(入力ﾌｫｰﾑ!BH4:'入力ﾌｫｰﾑ'!CR4)=0,\"\",入力ﾌｫｰﾑ!BN4)","v":""},null,null,{"$f":"IF(SUM(入力ﾌｫｰﾑ!BH4:'入力ﾌｫｰﾑ'!CR4)=0,\"\",入力ﾌｫｰﾑ!BQ4)","v":""},null,null,{"$f":"IF(SUM(入力ﾌｫｰﾑ!BH4:'入力ﾌｫｰﾑ'!CR4)=0,\"\",入力ﾌｫｰﾑ!BT4)","v":""},null,null,{"$f":"IF(SUM(入力ﾌｫｰﾑ!BH4:'入力ﾌｫｰﾑ'!CR4)=0,\"\",入力ﾌｫｰﾑ!BW4)","v":""},null,null,{"$f":"IF(SUM(入力ﾌｫｰﾑ!BH4:'入力ﾌｫｰﾑ'!CR4)=0,\"\",入力ﾌｫｰﾑ!BZ4)","v":""},null,null,{"$f":"IF(SUM(入力ﾌｫｰﾑ!BH4:'入力ﾌｫｰﾑ'!CR4)=0,\"\",入力ﾌｫｰﾑ!CC4)","v":""},null,null,{"$f":"IF(SUM(入力ﾌｫｰﾑ!BH4:'入力ﾌｫｰﾑ'!CR4)=0,\"\",入力ﾌｫｰﾑ!CF4)","v":""},null,null,{"$f":"IF(SUM(入力ﾌｫｰﾑ!BH4:'入力ﾌｫｰﾑ'!CR4)=0,\"\",入力ﾌｫｰﾑ!CI4)","v":""},null,null,{"$f":"IF(SUM(入力ﾌｫｰﾑ!BH4:'入力ﾌｫｰﾑ'!CR4)=0,\"\",入力ﾌｫｰﾑ!CL4)","v":""},null,null,{"$f":"IF(SUM(入力ﾌｫｰﾑ!BH4:'入力ﾌｫｰﾑ'!CR4)=0,\"\",入力ﾌｫｰﾑ!CO4)","v":""},null,null,{"$f":"IF(SUM(入力ﾌｫｰﾑ!BH4:'入力ﾌｫｰﾑ'!CR4)=0,\"\",入力ﾌｫｰﾑ!CR4)","v":""},null,null,null,null,"請求日",null,null,null,null,null,{"$f":"入力ﾌｫｰﾑ!DC4","v":0},null,null,null,null,null,null,null,null,null,null,null,"年",null,{"$f":"入力ﾌｫｰﾑ!DQ4","v":0},null,null,null,null,null,"月",null,{"$f":"入力ﾌｫｰﾑ!DY4","v":0},null,null,null,null,null,"日"]
[null,"今回請求金額",null,null,null,null,null,null,null,null,null,null,null,null,null,null,null,{"$f":"IF(入力ﾌｫｰﾑ!$R5<100000000,\"\",(LEFT(RIGHT(\"\"&入力ﾌｫｰﾑ!$R5,9))))","v":""},null,null,null,{"$f":"IF(入力ﾌｫｰﾑ!R5<10000000,\"\",(LEFT(RIGHT(\"\"&入力ﾌｫｰﾑ!$R5,8))))","v":""},null,null,null,{"$f":"IF(入力ﾌｫｰﾑ!$R5<1000000,\"\",(LEFT(RIGHT(\"\"&入力ﾌｫｰﾑ!$R5,7))))","v":""},null,null,null,{"$f":"IF(入力ﾌｫｰﾑ!$R5<100000,\"\",(LEFT(RIGHT(\"\"&入力ﾌｫｰﾑ!$R5,6))))","v":""},null,null,null,{"$f":"IF(入力ﾌｫｰﾑ!$R5<10000,\"\",(LEFT(RIGHT(\"\"&入力ﾌｫｰﾑ!$R5,5))))","v":""},null,null,null,{"$f":"IF(入力ﾌｫｰﾑ!$R5<1000,\"\",(LEFT(RIGHT(\"\"&入力ﾌｫｰﾑ!$R5,4))))","v":""},null,null,null,{"$f":"IF(入力ﾌｫｰﾑ!$R5<100,\"\",(LEFT(RIGHT(\"\"&入力ﾌｫｰﾑ!$R5,3))))","v":""},null,null,null,{"$f":"IF(入力ﾌｫｰﾑ!$R5<10,\"\",(LEFT(RIGHT(\"\"&入力ﾌｫｰﾑ!$R5,2))))","v":""},null,null,null,{"$f":"LEFT(RIGHT(\"\"&入力ﾌｫｰﾑ!$R5,1))","v":""},null,null,null,null,"住所",null,null,null,null,{"$f":"入力ﾌｫｰﾑ!BH5","v":0},null,null,null,null,null,null,null,null,null,null,null,null,null,null,null,null,null,null,null,null,null,null,null,null,null,null,null,null,null,null,null,null,null,null,null,null,null,null,null,null,null,null,null,null,null,null,null,null,null,null,null,null,null,null,null,null,null,null,null,null,null,null,null,null,null,null,null,null,null,null,null,null,null,null,null,null,null,"①提出用"]
[]
[null,"Ｄ当月請求額",null,null,null,null,null,null,null,null,null,null,null,null,null,null,null,{"$f":"IF(入力ﾌｫｰﾑ!$R7<100000000,\"\",(LEFT(RIGHT(\"\"&入力ﾌｫｰﾑ!$R7,9))))","v":""},null,null,null,{"$f":"IF(入力ﾌｫｰﾑ!R7<10000000,\"\",(LEFT(RIGHT(\"\"&入力ﾌｫｰﾑ!$R7,8))))","v":""},null,null,null,{"$f":"IF(入力ﾌｫｰﾑ!$R7<1000000,\"\",(LEFT(RIGHT(\"\"&入力ﾌｫｰﾑ!$R7,7))))","v":""},null,null,null,{"$f":"IF(入力ﾌｫｰﾑ!$R7<100000,\"\",(LEFT(RIGHT(\"\"&入力ﾌｫｰﾑ!$R7,6))))","v":""},null,null,null,{"$f":"IF(入力ﾌｫｰﾑ!$R7<10000,\"\",(LEFT(RIGHT(\"\"&入力ﾌｫｰﾑ!$R7,5))))","v":""},null,null,null,{"$f":"IF(入力ﾌｫｰﾑ!$R7<1000,\"\",(LEFT(RIGHT(\"\"&入力ﾌｫｰﾑ!$R7,4))))","v":""},null,null,null,{"$f":"IF(入力ﾌｫｰﾑ!$R7<100,\"\",(LEFT(RIGHT(\"\"&入力ﾌｫｰﾑ!$R7,3))))","v":""},null,null,null,{"$f":"IF(入力ﾌｫｰﾑ!$R7<10,\"\",(LEFT(RIGHT(\"\"&入力ﾌｫｰﾑ!$R7,2))))","v":""},null,null,null,{"$f":"LEFT(RIGHT(\"\"&入力ﾌｫｰﾑ!$R7,1))","v":""},null,null,null,null,"社名",null,null,null,null,{"$f":"入力ﾌｫｰﾑ!BH7","v":0},null,null,null,null,null,null,null,null,null,null,null,null,null,null,null,null,null,null,null,null,null,null,null,null,null,null,null,null,null,null,null,null,null,null,null,"㊞"]
[null,null,null,null,null,null,null,null,null,null,null,null,null,null,null,null,null,null,null,null,null,null,null,null,null,null,null,null,null,null,null,null,null,null,null,null,null,null,null,null,null,null,null,null,null,null,null,null,null,null,null,null,null,null,null,null,null,null,null,null,null,null,null,null,null,null,null,null,null,null,null,null,null,null,null,null,null,null,null,null,null,null,null,null,null,null,null,null,null,null,null,null,null,null,null,null,null,null,null,null,"工事№",null,null,null,null,null,null,{"$f":"IF(SUM(入力ﾌｫｰﾑ!DD8:'入力ﾌｫｰﾑ'!DV8)=0,\"\",入力ﾌｫｰﾑ!DD8)","v":""},null,null,{"$f":"IF(SUM(入力ﾌｫｰﾑ!DD8:'入力ﾌｫｰﾑ'!DV8)=0,\"\",入力ﾌｫｰﾑ!DG8)","v":""},null,null,{"$f":"IF(SUM(入力ﾌｫｰﾑ!DD8:'入力ﾌｫｰﾑ'!DV8)=0,\"\",入力ﾌｫｰﾑ!DJ8)","v":""},null,null,{"$f":"IF(SUM(入力ﾌｫｰﾑ!DD8:'入力ﾌｫｰﾑ'!DV8)=0,\"\",入力ﾌｫｰﾑ!DM8)","v":""},null,null,{"$f":"IF(SUM(入力ﾌｫｰﾑ!DD8:'入力ﾌｫｰﾑ'!DV8)=0,\"\",入力ﾌｫｰﾑ!DP8)","v":""},null,null,{"$f":"IF(SUM(入力ﾌｫｰﾑ!DD8:'入力ﾌｫｰﾑ'!EV8)=0,\"\",入力ﾌｫｰﾑ!DS8)","v":""},null,null,{"$f":"IF(SUM(入力ﾌｫｰﾑ!DD8:'入力ﾌｫｰﾑ'!DV8)=0,\"\",入力ﾌｫｰﾑ!DV8)","v":""},null,null,"部門"]
[null,"消費税",null,null,null,null,null,null,null,null,null,null,null,null,null,null,null,{"$f":"IF(入力ﾌｫｰﾑ!$R9<100000000,\"\",(LEFT(RIGHT(\"\"&入力ﾌｫｰﾑ!$R9,9))))","v":""},null,null,null,{"$f":"IF(入力ﾌｫｰﾑ!R9<10000000,\"\",(LEFT(RIGHT(\"\"&入力ﾌｫｰﾑ!$R9,8))))","v":""},null,null,null,{"$f":"IF(入力ﾌｫｰﾑ!$R9<1000000,\"\",(LEFT(RIGHT(\"\"&入力ﾌｫｰﾑ!$R9,7))))","v":""},null,null,null,{"$f":"IF(入力ﾌｫｰﾑ!$R9<100000,\"\",(LEFT(RIGHT(\"\"&入力ﾌｫｰﾑ!$R9,6))))","v":""},null,null,null,{"$f":"IF(入力ﾌｫｰﾑ!$R9<10000,\"\",(LEFT(RIGHT(\"\"&入力ﾌｫｰﾑ!$R9,5))))","v":""},null,null,null,{"$f":"IF(入力ﾌｫｰﾑ!$R9<1000,\"\",(LEFT(RIGHT(\"\"&入力ﾌｫｰﾑ!$R9,4))))","v":""},null,null,null,{"$f":"IF(入力ﾌｫｰﾑ!$R9<100,\"\",(LEFT(RIGHT(\"\"&入力ﾌｫｰﾑ!$R9,3))))","v":""},null,null,null,{"$f":"IF(入力ﾌｫｰﾑ!$R9<10,\"\",(LEFT(RIGHT(\"\"&入力ﾌｫｰﾑ!$R9,2))))","v":""},null,null,null,{"$f":"LEFT(RIGHT(\"\"&入力ﾌｫｰﾑ!$R9,1))","v":""},null,null,null,null,"TEL",null,null,null,null,{"$f":"入力ﾌｫｰﾑ!BH9","v":0}]
[null,null,null,null,null,null,null,null,null,null,null,null,null,null,null,null,null,null,null,null,null,null,null,null,null,null,null,null,null,null,null,null,null,null,null,null,null,null,null,null,null,null,null,null,null,null,null,null,null,null,null,null,null,null,null,null,null,null,null,null,null,null,null,null,null,null,null,null,null,null,null,null,null,null,null,null,null,null,null,null,null,null,null,null,null,null,null,null,null,null,null,null,null,null,null,null,null,null,null,null,"取引先コード",null,null,null,null,null,null,null,null,null,null,null,null,null,null,null,null,null,null,null,"注文№",null,null,null,null,null,null,null,null,null,null,null,null,null,null,null,"伝票№"]
[null,"消費税率",null,null,null,null,null,null,null,null,null,null,{"$f":"IF(入力ﾌｫｰﾑ!M11=\"\",\"\",入力ﾌｫｰﾑ!M11)","v":""},null,null,null,null,"工事名称",null,null,null,null,null,null,null,null,null,null,null,null,null,{"$f":"入力ﾌｫｰﾑ!AC11","v":0},null,null,null,null,null,null,null,null,null,null,null,null,null,null,null,null,null,null,null,null,null,null,null,null,null,null,null,null,null,null,null,null,null,null,null,null,null,null,null,null,"ｴﾇﾃｯｸｻｰﾋﾞｽ㈱",null,null,null,null,null,null,null,null,null,null,null,null,{"$f":"入力ﾌｫｰﾑ!CH11","v":0}]
[null,null,null,null,null,null,null,null,null,null,null,null,null,null,null,null,null,null,null,null,null,null,null,null,null,null,null,null,null,null,null,null,null,null,null,null,null,null,null,null,null,null,null,null,null,null,null,null,null,null,null,null,null,null,null,null,null,null,null,null,null,null,null,null,null,null,null,null,null,null,null,null,"現場担当者名",null,null,null,null,null,null,null,null,null,null,null,null,null,null,null,null,null,null,null,null,null,null,null,null,null,null,null,{"$f":"IF(SUM(入力ﾌｫｰﾑ!CW12:'入力ﾌｫｰﾑ'!DM12)=0,\"\",(入力ﾌｫｰﾑ!CW12))","v":""},null,null,null,{"$f":"IF(SUM(入力ﾌｫｰﾑ!CW12:'入力ﾌｫｰﾑ'!DM12)=0,\"\",(入力ﾌｫｰﾑ!DA12))","v":""},null,null,null,{"$f":"IF(SUM(入力ﾌｫｰﾑ!CW12:'入力ﾌｫｰﾑ'!DM12)=0,\"\",(入力ﾌｫｰﾑ!DE12))","v":""},null,null,null,{"$f":"IF(SUM(入力ﾌｫｰﾑ!CW12:'入力ﾌｫｰﾑ'!DM12)=0,\"\",(入力ﾌｫｰﾑ!DI12))","v":""},null,null,null,{"$f":"IF(SUM(入力ﾌｫｰﾑ!CW12:'入力ﾌｫｰﾑ'!DM12)=0,\"\",(入力ﾌｫｰﾑ!DM12))","v":""},null,null,null,{"$f":"IF(SUM(入力ﾌｫｰﾑ!DQ12:'入力ﾌｫｰﾑ'!EC12)=0,\"\",入力ﾌｫｰﾑ!DQ12)","v":""},null,null,null,{"$f":"IF(SUM(入力ﾌｫｰﾑ!DQ12:'入力ﾌｫｰﾑ'!EC12)=0,\"\",入力ﾌｫｰﾑ!DU12)","v":""},null,null,null,{"$f":"IF(SUM(入力ﾌｫｰﾑ!DQ12:'入力ﾌｫｰﾑ'!EC12)=0,\"\",入力ﾌｫｰﾑ!DY12)","v":""},null,null,null,{"$f":"IF(SUM(入力ﾌｫｰﾑ!DQ12:'入力ﾌｫｰﾑ'!EC12)=0,\"\",入力ﾌｫｰﾑ!EC12)","v":""}]
[null,"月日",null,null,null,"品　　目",null,null,null,null,null,null,null,null,null,null,null,null,null,null,null,null,null,null,null,null,null,null,null,null,null,null,null,null,null,null,null,null,null,null,null,null,null,null,null,null,null,null,null,null,null,null,null,null,null,null,null,null,null,"数量",null,null,null,null,null,null,null,null,null,null,null,null,"単価",null,null,null,null,null,null,null,null,null,"金　額"]
[]
[null,{"$f":"入力ﾌｫｰﾑ!B15","v":0},null,null,null,{"$f":"IF(入力ﾌｫｰﾑ!F15=0,\"\",入力ﾌｫｰﾑ!F15)","v":""},null,null,null,null,null,null,null,null,null,null,null,null,null,null,null,null,null,null,null,null,null,null,null,null,null,null,null,null,null,null,null,null,null,null,null,null,null,null,null,null,null,null,null,null,null,null,null,null,null,null,null,null,null,{"$f":"IF(入力ﾌｫｰﾑ!BH15=0,\"\",入力ﾌｫｰﾑ!BH15)","v":""},null,null,null,null,null,null,null,null,null,null,null,null,{"$f":"IF(入力ﾌｫｰﾑ!BU15=0,\"\",入力ﾌｫｰﾑ!BU15)","v":""},null,null,null,null,null,null,null,null,null,{"$f":"IF(入力ﾌｫｰﾑ!CE15=0,\"\",入力ﾌｫｰﾑ!CE15)","v":""}]
[]
[null,{"$f":"入力ﾌｫｰﾑ!B17","v":0},null,null,null,{"$f":"IF(入力ﾌｫｰﾑ!F17=0,\"\",入力ﾌｫｰﾑ!F17)","v":""},null,null,null,null,null,null,null,null,null,null,null,null,null,null,null,null,null,null,null,null,null,null,null,null,null,null,null,null,null,null,null,null,null,null,null,null,null,null,null,null,null,null,null,null,null,null,null,null,null,null,null,null,null,{"$f":"IF(入力ﾌｫｰﾑ!BH17=0,\"\",入力ﾌｫｰﾑ!BH17)","v":""},null,null,null,null,null,null,null,null,null,null,null,null,{"$f":"IF(入力ﾌｫｰﾑ!BU17=0,\"\",入力ﾌｫｰﾑ!BU17)","v":""},null,null,null,null,null,null,null,null,null,{"$f":"IF(入力ﾌｫｰﾑ!CE17=0,\"\",入力ﾌｫｰﾑ!CE17)","v":""}]
[]
[null,{"$f":"入力ﾌｫｰﾑ!B19","v":0},null,null,null,{"$f":"IF(入力ﾌｫｰﾑ!F19=0,\"\",入力ﾌｫｰﾑ!F19)","v":""},null,null,null,null,null,null,null,null,null,null,null,null,null,null,null,null,null,null,null,null,null,null,null,null,null,null,null,null,null,null,null,null,null,null,null,null,null,null,null,null,null,null,null,null,null,null,null,null,null,null,null,null,null,{"$f":"IF(入力ﾌｫｰﾑ!BH19=0,\"\",入力ﾌｫｰﾑ!BH19)","v":""},null,null,null,null,null,null,null,null,null,null,null,null,{"$f":"IF(入力ﾌｫｰﾑ!BU19=0,\"\",入力ﾌｫｰﾑ!BU19)","v":""},null,null,null,null,null,null,null,null,null,{"$f":"IF(入力ﾌｫｰﾑ!CE19=0,\"\",入力ﾌｫｰﾑ!CE19)","v":""}]
[]
[null,{"$f":"入力ﾌｫｰﾑ!B21","v":0},null,null,null,{"$f":"IF(入力ﾌｫｰﾑ!F21=0,\"\",入力ﾌｫｰﾑ!F21)","v":""},null,null,null,null,null,null,null,null,null,null,null,null,null,null,null,null,null,null,null,null,null,null,null,null,null,null,null,null,null,null,null,null,null,null,null,null,null,null,null,null,null,null,null,null,null,null,null,null,null,null,null,null,null,{"$f":"IF(入力ﾌｫｰﾑ!BH21=0,\"\",入力ﾌｫｰﾑ!BH21)","v":""},null,null,null,null,null,null,null,null,null,null,null,null,{"$f":"IF(入力ﾌｫｰﾑ!BU21=0,\"\",入力ﾌｫｰﾑ!BU21)","v":""},null,null,null,null,null,null,null,null,null,{"$f":"IF(入力ﾌｫｰﾑ!CE21=0,\"\",入力ﾌｫｰﾑ!CE21)","v":""}]
[]
[null,{"$f":"入力ﾌｫｰﾑ!B23","v":0},null,null,null,{"$f":"IF(入力ﾌｫｰﾑ!F23=0,\"\",入力ﾌｫｰﾑ!F23)","v":""},null,null,null,null,null,null,null,null,null,null,null,null,null,null,null,null,null,null,null,null,null,null,null,null,null,null,null,null,null,null,null,null,null,null,null,null,null,null,null,null,null,null,null,null,null,null,null,null,null,null,null,null,null,{"$f":"IF(入力ﾌｫｰﾑ!BH23=0,\"\",入力ﾌｫｰﾑ!BH23)","v":""},null,null,null,null,null,null,null,null,null,null,null,null,{"$f":"IF(入力ﾌｫｰﾑ!BU23=0,\"\",入力ﾌｫｰﾑ!BU23)","v":""},null,null,null,null,null,null,null,null,null,{"$f":"IF(入力ﾌｫｰﾑ!CE23=0,\"\",入力ﾌｫｰﾑ!CE23)","v":""}]
[]
[null,{"$f":"入力ﾌｫｰﾑ!B25","v":0},null,null,null,{"$f":"IF(入力ﾌｫｰﾑ!F25=0,\"\",入力ﾌｫｰﾑ!F25)","v":""},null,null,null,null,null,null,null,null,null,null,null,null,null,null,null,null,null,null,null,null,null,null,null,null,null,null,null,null,null,null,null,null,null,null,null,null,null,null,null,null,null,null,null,null,null,null,null,null,null,null,null,null,null,{"$f":"IF(入力ﾌｫｰﾑ!BH25=0,\"\",入力ﾌｫｰﾑ!BH25)","v":""},null,null,null,null,null,null,null,null,null,null,null,null,{"$f":"IF(入力ﾌｫｰﾑ!BU25=0,\"\",入力ﾌｫｰﾑ!BU25)","v":""},null,null,null,null,null,null,null,null,null,{"$f":"IF(入力ﾌｫｰﾑ!CE25=0,\"\",入力ﾌｫｰﾑ!CE25)","v":""}]
[]
[null,{"$f":"入力ﾌｫｰﾑ!B27","v":0},null,null,null,{"$f":"IF(入力ﾌｫｰﾑ!F27=0,\"\",入力ﾌｫｰﾑ!F27)","v":""},null,null,null,null,null,null,null,null,null,null,null,null,null,null,null,null,null,null,null,null,null,null,null,null,null,null,null,null,null,null,null,null,null,null,null,null,null,null,null,null,null,null,null,null,null,null,null,null,null,null,null,null,null,{"$f":"IF(入力ﾌｫｰﾑ!BH27=0,\"\",入力ﾌｫｰﾑ!BH27)","v":""},null,null,null,null,null,null,null,null,null,null,null,null,{"$f":"IF(入力ﾌｫｰﾑ!BU27=0,\"\",入力ﾌｫｰﾑ!BU27)","v":""},null,null,null,null,null,null,null,null,null,{"$f":"IF(入力ﾌｫｰﾑ!CE27=0,\"\",入力ﾌｫｰﾑ!CE27)","v":""}]
[]
[null,{"$f":"入力ﾌｫｰﾑ!B29","v":0},null,null,null,{"$f":"IF(入力ﾌｫｰﾑ!F29=0,\"\",入力ﾌｫｰﾑ!F29)","v":""},null,null,null,null,null,null,null,null,null,null,null,null,null,null,null,null,null,null,null,null,null,null,null,null,null,null,null,null,null,null,null,null,null,null,null,null,null,null,null,null,null,null,null,null,null,null,null,null,null,null,null,null,null,{"$f":"IF(入力ﾌｫｰﾑ!BH29=0,\"\",入力ﾌｫｰﾑ!BH29)","v":""},null,null,null,null,null,null,null,null,null,null,null,null,{"$f":"IF(入力ﾌｫｰﾑ!BU29=0,\"\",入力ﾌｫｰﾑ!BU29)","v":""},null,null,null,null,null,null,null,null,null,{"$f":"IF(入力ﾌｫｰﾑ!CE29=0,\"\",入力ﾌｫｰﾑ!CE29)","v":""}]
[null,null,null,null,null,null,null,null,null,null,null,null,null,null,null,null,null,null,null,null,null,null,null,null,null,null,null,null,null,null,null,null,null,null,null,null,null,null,null,null,null,null,null,null,null,null,null,null,null,null,null,null,null,null,null,null,null,null,null,null,null,null,null,null,null,null,null,null,null,null,null,null,null,null,null,null,null,null,null,null,null,null,null,null,null,null,null,null,null,null,null,null,null,null,null,null,null,null,null,null,null,null,null,null,null,null,"勘定科目コード",null,null,null,null,null,null,null,null,null,null,null,null,null,null,null,null,null,null,null,null,null,null,null,null,"工種コード"]
[null,{"$f":"入力ﾌｫｰﾑ!B31","v":0},null,null,null,{"$f":"IF(入力ﾌｫｰﾑ!F31=0,\"\",入力ﾌｫｰﾑ!F31)","v":""},null,null,null,null,null,null,null,null,null,null,null,null,null,null,null,null,null,null,null,null,null,null,null,null,null,null,null,null,null,null,null,null,null,null,null,null,null,null,null,null,null,null,null,null,null,null,null,null,null,null,null,null,null,{"$f":"IF(入力ﾌｫｰﾑ!BH31=0,\"\",入力ﾌｫｰﾑ!BH31)","v":""},null,null,null,null,null,null,null,null,null,null,null,null,{"$f":"IF(入力ﾌｫｰﾑ!BU31=0,\"\",入力ﾌｫｰﾑ!BU31)","v":""},null,null,null,null,null,null,null,null,null,{"$f":"IF(入力ﾌｫｰﾑ!CE31=0,\"\",入力ﾌｫｰﾑ!CE31)","v":""}]
[null,null,null,null,null,null,null,null,null,null,null,null,null,null,null,null,null,null,null,null,null,null,null,null,null,null,null,null,null,null,null,null,null,null,null,null,null,null,null,null,null,null,null,null,null,null,null,null,null,null,null,null,null,null,null,null,null,null,null,null,null,null,null,null,null,null,null,null,null,null,null,null,null,null,null,null,null,null,null,null,null,null,null,null,null,null,null,null,null,null,null,null,null,null,null,null,null,null,null,null,null,null,null,null,null,null,4010]
[null,"計",null,null,null,null,null,null,null,null,null,null,null,null,null,null,null,null,null,null,null,null,null,null,null,null,null,null,null,null,null,null,null,null,null,null,null,null,null,null,null,null,null,null,null,null,null,null,null,null,null,null,null,null,null,null,null,null,null,null,null,null,null,null,null,null,null,null,null,null,null,null,null,null,null,null,null,null,null,null,null,null,{"$f":"IF(入力ﾌｫｰﾑ!CE33=0,\"\",入力ﾌｫｰﾑ!CE33)","v":""}]
[null,null,null,null,null,null,null,null,null,null,null,null,null,null,null,null,null,null,null,null,null,null,null,null,null,null,null,null,null,null,null,null,null,null,null,null,null,null,null,null,null,null,null,null,null,null,null,null,null,null,null,null,null,null,null,null,null,null,null,null,null,null,null,null,null,null,null,null,null,null,null,null,null,null,null,null,null,null,null,null,null,null,null,null,null,null,null,null,null,null,null,null,null,null,null,null,null,null,null,null,null,null,null,null,null,null,"査　定　日",null,null,null,null,null,null,null,null,null,null,null,null,null,null,"月　　　　日"]
[null,"備考",null,null,null,null,null,null,null,null,null,null,null,null,null,null,null,null,null,null,null,null,null,null,null,null,null,null,null,null,null,null,null,null,null,null,null,null,"工種コード",null,null,null,null,null,null,null,null,null,null,null,null,null,null,"金額",null,null,null,null,null,null,null,null,null,null,null,null,null,null,"工種コード",null,null,null,null,null,null,null,null,null,null,null,null,null,null,"金額"]
[null,null,null,null,null,null,null,null,null,null,null,null,null,null,null,null,null,null,null,null,null,null,null,null,null,null,null,null,null,null,null,null,null,null,null,null,null,null,null,null,null,null,null,null,null,null,null,null,null,null,null,null,null,null,null,null,null,null,null,null,null,null,null,null,null,null,null,null,null,null,null,null,null,null,null,null,null,null,null,null,null,null,null,null,null,null,null,null,null,null,null,null,null,null,null,null,null,null,null,null,null,null,null,null,null,null,"立替金・支給材等控除",null,null,null,null,null,null,null,null,null,null,null,null,null,null,"無・有",null,null,null,null,null,null,null,"(",null,null,null,null,null,null,null,null,null,null,null,null,null,")"]
[]
[]
[null,null,null,null,null,null,null,null,null,null,null,null,null,null,null,null,null,null,null,null,null,null,null,null,null,null,null,null,null,null,null,null,null,null,null,null,null,null,null,null,null,null,null,null,null,null,null,null,null,null,null,null,null,null,null,null,null,null,null,null,null,null,null,null,null,null,null,null,null,null,null,null,null,null,null,null,null,null,null,null,null,null,null,null,null,null,null,null,null,null,null,null,null,null,null,null,null,null,null,null,null,null,null,null,null,null,"社　長",null,null,null,null,null,null,null,"部　長",null,null,null,null,null,null,null,"課　長",null,null,null,null,null,null,null,"係長・主任・担当者"]
[]
[]
[null,null,null,null,null,null,null,null,null,null,null,null,null,null,null,null,null,null,null,null,null,null,null,null,null,null,null,null,null,null,null,null,null,null,null,null,null,null,null,null,null,null,null,null,null,null,null,null,null,null,null,null,null,null,null,null,null,null,null,null,null,null,null,null,null,null,null,null,null,null,null,null,null,null,null,null,null,null,null,"合計\n金額"]
[]
[null,"エヌテックサービス株式会社",null,null,null,null,null,null,null,null,null,null,null,null,null,null,null,null,null,null,null,null,null,null,null,null,null,null,null,null,null,null,null,null,null,null,null,null,null,"御中",null,null,null,null,null,null,null,null,null,null,null,null,null,null,"請求書(材料・経費)"]
[]
[]
[null,"下記のとおり請求致します。",null,null,null,null,null,null,null,null,null,null,null,null,null,null,null,null,null,null,null,null,null,null,null,null,null,null,null,null,null,null,null,null,null,null,null,null,null,null,null,null,null,null,null,null,null,null,null,null,null,null,null,null,"T",null,null,null,null,{"$f":"IF(SUM(入力ﾌｫｰﾑ!BH4:'入力ﾌｫｰﾑ'!CR4)=0,\"\",入力ﾌｫｰﾑ!BH4)","v":""},null,null,{"$f":"IF(SUM(入力ﾌｫｰﾑ!BH4:'入力ﾌｫｰﾑ'!CR4)=0,\"\",入力ﾌｫｰﾑ!BK4)","v":""},null,null,{"$f":"IF(SUM(入力ﾌｫｰﾑ!BH4:'入力ﾌｫｰﾑ'!CR4)=0,\"\",入力ﾌｫｰﾑ!BN4)","v":""},null,null,{"$f":"IF(SUM(入力ﾌｫｰﾑ!BH4:'入力ﾌｫｰﾑ'!CR4)=0,\"\",入力ﾌｫｰﾑ!BQ4)","v":""},null,null,{"$f":"IF(SUM(入力ﾌｫｰﾑ!BH4:'入力ﾌｫｰﾑ'!CR4)=0,\"\",入力ﾌｫｰﾑ!BT4)","v":""},null,null,{"$f":"IF(SUM(入力ﾌｫｰﾑ!BH4:'入力ﾌｫｰﾑ'!CR4)=0,\"\",入力ﾌｫｰﾑ!BW4)","v":""},null,null,{"$f":"IF(SUM(入力ﾌｫｰﾑ!BH4:'入力ﾌｫｰﾑ'!CR4)=0,\"\",入力ﾌｫｰﾑ!BZ4)","v":""},null,null,{"$f":"IF(SUM(入力ﾌｫｰﾑ!BH4:'入力ﾌｫｰﾑ'!CR4)=0,\"\",入力ﾌｫｰﾑ!CC4)","v":""},null,null,{"$f":"IF(SUM(入力ﾌｫｰﾑ!BH4:'入力ﾌｫｰﾑ'!CR4)=0,\"\",入力ﾌｫｰﾑ!CF4)","v":""},null,null,{"$f":"IF(SUM(入力ﾌｫｰﾑ!BH4:'入力ﾌｫｰﾑ'!CR4)=0,\"\",入力ﾌｫｰﾑ!CI4)","v":""},null,null,{"$f":"IF(SUM(入力ﾌｫｰﾑ!BH4:'入力ﾌｫｰﾑ'!CR4)=0,\"\",入力ﾌｫｰﾑ!CL4)","v":""},null,null,{"$f":"IF(SUM(入力ﾌｫｰﾑ!BH4:'入力ﾌｫｰﾑ'!CR4)=0,\"\",入力ﾌｫｰﾑ!CO4)","v":""},null,null,{"$f":"IF(SUM(入力ﾌｫｰﾑ!BH4:'入力ﾌｫｰﾑ'!CR4)=0,\"\",入力ﾌｫｰﾑ!CR4)","v":""},null,null,null,null,"請求日",null,null,null,null,null,{"$f":"入力ﾌｫｰﾑ!DC4","v":0},null,null,null,null,null,null,null,null,null,null,null,"年",null,{"$f":"入力ﾌｫｰﾑ!DQ4","v":0},null,null,null,null,null,"月",null,{"$f":"入力ﾌｫｰﾑ!DY4","v":0},null,null,null,null,null,"日"]
[null,"今回請求金額",null,null,null,null,null,null,null,null,null,null,null,null,null,null,null,{"$f":"IF(入力ﾌｫｰﾑ!$R5<100000000,\"\",(LEFT(RIGHT(\"\"&入力ﾌｫｰﾑ!$R5,9))))","v":""},null,null,null,{"$f":"IF(入力ﾌｫｰﾑ!R5<10000000,\"\",(LEFT(RIGHT(\"\"&入力ﾌｫｰﾑ!$R5,8))))","v":""},null,null,null,{"$f":"IF(入力ﾌｫｰﾑ!$R5<1000000,\"\",(LEFT(RIGHT(\"\"&入力ﾌｫｰﾑ!$R5,7))))","v":""},null,null,null,{"$f":"IF(入力ﾌｫｰﾑ!$R5<100000,\"\",(LEFT(RIGHT(\"\"&入力ﾌｫｰﾑ!$R5,6))))","v":""},null,null,null,{"$f":"IF(入力ﾌｫｰﾑ!$R5<10000,\"\",(LEFT(RIGHT(\"\"&入力ﾌｫｰﾑ!$R5,5))))","v":""},null,null,null,{"$f":"IF(入力ﾌｫｰﾑ!$R5<1000,\"\",(LEFT(RIGHT(\"\"&入力ﾌｫｰﾑ!$R5,4))))","v":""},null,null,null,{"$f":"IF(入力ﾌｫｰﾑ!$R5<100,\"\",(LEFT(RIGHT(\"\"&入力ﾌｫｰﾑ!$R5,3))))","v":""},null,null,null,{"$f":"IF(入力ﾌｫｰﾑ!$R5<10,\"\",(LEFT(RIGHT(\"\"&入力ﾌｫｰﾑ!$R5,2))))","v":""},null,null,null,{"$f":"LEFT(RIGHT(\"\"&入力ﾌｫｰﾑ!$R5,1))","v":""},null,null,null,null,"住所",null,null,null,null,{"$f":"入力ﾌｫｰﾑ!BH5","v":0},null,null,null,null,null,null,null,null,null,null,null,null,null,null,null,null,null,null,null,null,null,null,null,null,null,null,null,null,null,null,null,null,null,null,null,null,null,null,null,null,null,null,null,null,null,null,null,null,null,null,null,null,null,null,null,null,null,null,null,null,null,null,null,null,null,null,null,null,null,null,null,null,null,null,null,null,null,"②取引先控"]
[]
[null,"Ｄ当月請求額",null,null,null,null,null,null,null,null,null,null,null,null,null,null,null,{"$f":"IF(入力ﾌｫｰﾑ!$R7<100000000,\"\",(LEFT(RIGHT(\"\"&入力ﾌｫｰﾑ!$R7,9))))","v":""},null,null,null,{"$f":"IF(入力ﾌｫｰﾑ!R7<10000000,\"\",(LEFT(RIGHT(\"\"&入力ﾌｫｰﾑ!$R7,8))))","v":""},null,null,null,{"$f":"IF(入力ﾌｫｰﾑ!$R7<1000000,\"\",(LEFT(RIGHT(\"\"&入力ﾌｫｰﾑ!$R7,7))))","v":""},null,null,null,{"$f":"IF(入力ﾌｫｰﾑ!$R7<100000,\"\",(LEFT(RIGHT(\"\"&入力ﾌｫｰﾑ!$R7,6))))","v":""},null,null,null,{"$f":"IF(入力ﾌｫｰﾑ!$R7<10000,\"\",(LEFT(RIGHT(\"\"&入力ﾌｫｰﾑ!$R7,5))))","v":""},null,null,null,{"$f":"IF(入力ﾌｫｰﾑ!$R7<1000,\"\",(LEFT(RIGHT(\"\"&入力ﾌｫｰﾑ!$R7,4))))","v":""},null,null,null,{"$f":"IF(入力ﾌｫｰﾑ!$R7<100,\"\",(LEFT(RIGHT(\"\"&入力ﾌｫｰﾑ!$R7,3))))","v":""},null,null,null,{"$f":"IF(入力ﾌｫｰﾑ!$R7<10,\"\",(LEFT(RIGHT(\"\"&入力ﾌｫｰﾑ!$R7,2))))","v":""},null,null,null,{"$f":"LEFT(RIGHT(\"\"&入力ﾌｫｰﾑ!$R7,1))","v":""},null,null,null,null,"社名",null,null,null,null,{"$f":"入力ﾌｫｰﾑ!BH7","v":0}]
[null,null,null,null,null,null,null,null,null,null,null,null,null,null,null,null,null,null,null,null,null,null,null,null,null,null,null,null,null,null,null,null,null,null,null,null,null,null,null,null,null,null,null,null,null,null,null,null,null,null,null,null,null,null,null,null,null,null,null,null,null,null,null,null,null,null,null,null,null,null,null,null,null,null,null,null,null,null,null,null,null,null,null,null,null,null,null,null,null,null,null,null,null,null,null,null,null,null,null,null,"工事№",null,null,null,null,null,null,{"$f":"IF(SUM(入力ﾌｫｰﾑ!DD8:'入力ﾌｫｰﾑ'!DV8)=0,\"\",入力ﾌｫｰﾑ!DD8)","v":""},null,null,{"$f":"IF(SUM(入力ﾌｫｰﾑ!DD8:'入力ﾌｫｰﾑ'!DV8)=0,\"\",入力ﾌｫｰﾑ!DG8)","v":""},null,null,{"$f":"IF(SUM(入力ﾌｫｰﾑ!DD8:'入力ﾌｫｰﾑ'!DV8)=0,\"\",入力ﾌｫｰﾑ!DJ8)","v":""},null,null,{"$f":"IF(SUM(入力ﾌｫｰﾑ!DD8:'入力ﾌｫｰﾑ'!DV8)=0,\"\",入力ﾌｫｰﾑ!DM8)","v":""},null,null,{"$f":"IF(SUM(入力ﾌｫｰﾑ!DD8:'入力ﾌｫｰﾑ'!DV8)=0,\"\",入力ﾌｫｰﾑ!DP8)","v":""},null,null,{"$f":"IF(SUM(入力ﾌｫｰﾑ!DD8:'入力ﾌｫｰﾑ'!EV8)=0,\"\",入力ﾌｫｰﾑ!DS8)","v":""},null,null,{"$f":"IF(SUM(入力ﾌｫｰﾑ!DD8:'入力ﾌｫｰﾑ'!DV8)=0,\"\",入力ﾌｫｰﾑ!DV8)","v":""}]
[null,"消費税",null,null,null,null,null,null,null,null,null,null,null,null,null,null,null,{"$f":"IF(入力ﾌｫｰﾑ!$R9<100000000,\"\",(LEFT(RIGHT(\"\"&入力ﾌｫｰﾑ!$R9,9))))","v":""},null,null,null,{"$f":"IF(入力ﾌｫｰﾑ!R9<10000000,\"\",(LEFT(RIGHT(\"\"&入力ﾌｫｰﾑ!$R9,8))))","v":""},null,null,null,{"$f":"IF(入力ﾌｫｰﾑ!$R9<1000000,\"\",(LEFT(RIGHT(\"\"&入力ﾌｫｰﾑ!$R9,7))))","v":""},null,null,null,{"$f":"IF(入力ﾌｫｰﾑ!$R9<100000,\"\",(LEFT(RIGHT(\"\"&入力ﾌｫｰﾑ!$R9,6))))","v":""},null,null,null,{"$f":"IF(入力ﾌｫｰﾑ!$R9<10000,\"\",(LEFT(RIGHT(\"\"&入力ﾌｫｰﾑ!$R9,5))))","v":""},null,null,null,{"$f":"IF(入力ﾌｫｰﾑ!$R9<1000,\"\",(LEFT(RIGHT(\"\"&入力ﾌｫｰﾑ!$R9,4))))","v":""},null,null,null,{"$f":"IF(入力ﾌｫｰﾑ!$R9<100,\"\",(LEFT(RIGHT(\"\"&入力ﾌｫｰﾑ!$R9,3))))","v":""},null,null,null,{"$f":"IF(入力ﾌｫｰﾑ!$R9<10,\"\",(LEFT(RIGHT(\"\"&入力ﾌｫｰﾑ!$R9,2))))","v":""},null,null,null,{"$f":"LEFT(RIGHT(\"\"&入力ﾌｫｰﾑ!$R9,1))","v":""},null,null,null,null,"TEL",null,null,null,null,{"$f":"入力ﾌｫｰﾑ!BH9","v":0}]
[null,null,null,null,null,null,null,null,null,null,null,null,null,null,null,null,null,null,null,null,null,null,null,null,null,null,null,null,null,null,null,null,null,null,null,null,null,null,null,null,null,null,null,null,null,null,null,null,null,null,null,null,null,null,null,null,null,null,null,null,null,null,null,null,null,null,null,null,null,null,null,null,null,null,null,null,null,null,null,null,null,null,null,null,null,null,null,null,null,null,null,null,null,null,null,null,null,null,null,null,"取引先コード",null,null,null,null,null,null,null,null,null,null,null,null,null,null,null,null,null,null,null,"注文№"]
[null,"消費税率",null,null,null,null,null,null,null,null,null,null,{"$f":"IF(入力ﾌｫｰﾑ!M11=0,\"\",入力ﾌｫｰﾑ!M11)","v":""},null,null,null,null,"工事名称",null,null,null,null,null,null,null,null,null,null,null,null,null,{"$f":"入力ﾌｫｰﾑ!AC11","v":0},null,null,null,null,null,null,null,null,null,null,null,null,null,null,null,null,null,null,null,null,null,null,null,null,null,null,null,null,null,null,null,null,null,null,null,null,null,null,null,null,"ｴﾇﾃｯｸｻｰﾋﾞｽ㈱",null,null,null,null,null,null,null,null,null,null,null,null,{"$f":"入力ﾌｫｰﾑ!CH11","v":0}]
[null,null,null,null,null,null,null,null,null,null,null,null,null,null,null,null,null,null,null,null,null,null,null,null,null,null,null,null,null,null,null,null,null,null,null,null,null,null,null,null,null,null,null,null,null,null,null,null,null,null,null,null,null,null,null,null,null,null,null,null,null,null,null,null,null,null,null,null,null,null,null,null,"現場担当者名",null,null,null,null,null,null,null,null,null,null,null,null,null,null,null,null,null,null,null,null,null,null,null,null,null,null,null,{"$f":"IF(SUM(入力ﾌｫｰﾑ!CW12:'入力ﾌｫｰﾑ'!DM12)=0,\"\",(入力ﾌｫｰﾑ!CW12))","v":""},null,null,null,{"$f":"IF(SUM(入力ﾌｫｰﾑ!CW12:'入力ﾌｫｰﾑ'!DM12)=0,\"\",(入力ﾌｫｰﾑ!DA12))","v":""},null,null,null,{"$f":"IF(SUM(入力ﾌｫｰﾑ!CW12:'入力ﾌｫｰﾑ'!DM12)=0,\"\",(入力ﾌｫｰﾑ!DE12))","v":""},null,null,null,{"$f":"IF(SUM(入力ﾌｫｰﾑ!CW12:'入力ﾌｫｰﾑ'!DM12)=0,\"\",(入力ﾌｫｰﾑ!DI12))","v":""},null,null,null,{"$f":"IF(SUM(入力ﾌｫｰﾑ!CW12:'入力ﾌｫｰﾑ'!DM12)=0,\"\",(入力ﾌｫｰﾑ!DM12))","v":""},null,null,null,{"$f":"IF(SUM(入力ﾌｫｰﾑ!DQ12:'入力ﾌｫｰﾑ'!EC12)=0,\"\",入力ﾌｫｰﾑ!DQ12)","v":""},null,null,null,{"$f":"IF(SUM(入力ﾌｫｰﾑ!DQ12:'入力ﾌｫｰﾑ'!EC12)=0,\"\",入力ﾌｫｰﾑ!DU12)","v":""},null,null,null,{"$f":"IF(SUM(入力ﾌｫｰﾑ!DQ12:'入力ﾌｫｰﾑ'!EC12)=0,\"\",入力ﾌｫｰﾑ!DY12)","v":""},null,null,null,{"$f":"IF(SUM(入力ﾌｫｰﾑ!DQ12:'入力ﾌｫｰﾑ'!EC12)=0,\"\",入力ﾌｫｰﾑ!EC12)","v":""}]
[null,"月日",null,null,null,"品　　目",null,null,null,null,null,null,null,null,null,null,null,null,null,null,null,null,null,null,null,null,null,null,null,null,null,null,null,null,null,null,null,null,null,null,null,null,null,null,null,null,null,null,null,null,null,null,null,null,null,null,null,null,null,"数量",null,null,null,null,null,null,null,null,null,null,null,null,"単価",null,null,null,null,null,null,null,null,null,"金　額"]
[]
[null,{"$f":"入力ﾌｫｰﾑ!B15","v":0},null,null,null,{"$f":"IF(入力ﾌｫｰﾑ!F15=0,\"\",入力ﾌｫｰﾑ!F15)","v":""},null,null,null,null,null,null,null,null,null,null,null,null,null,null,null,null,null,null,null,null,null,null,null,null,null,null,null,null,null,null,null,null,null,null,null,null,null,null,null,null,null,null,null,null,null,null,null,null,null,null,null,null,null,{"$f":"IF(入力ﾌｫｰﾑ!BH15=0,\"\",入力ﾌｫｰﾑ!BH15)","v":""},null,null,null,null,null,null,null,null,null,null,null,null,{"$f":"IF(入力ﾌｫｰﾑ!BU15=0,\"\",入力ﾌｫｰﾑ!BU15)","v":""},null,null,null,null,null,null,null,null,null,{"$f":"IF(入力ﾌｫｰﾑ!CE15=0,\"\",入力ﾌｫｰﾑ!CE15)","v":""}]
[]
[null,{"$f":"入力ﾌｫｰﾑ!B17","v":0},null,null,null,{"$f":"IF(入力ﾌｫｰﾑ!F17=0,\"\",入力ﾌｫｰﾑ!F17)","v":""},null,null,null,null,null,null,null,null,null,null,null,null,null,null,null,null,null,null,null,null,null,null,null,null,null,null,null,null,null,null,null,null,null,null,null,null,null,null,null,null,null,null,null,null,null,null,null,null,null,null,null,null,null,{"$f":"IF(入力ﾌｫｰﾑ!BH17=0,\"\",入力ﾌｫｰﾑ!BH17)","v":""},null,null,null,null,null,null,null,null,null,null,null,null,{"$f":"IF(入力ﾌｫｰﾑ!BU17=0,\"\",入力ﾌｫｰﾑ!BU17)","v":""},null,null,null,null,null,null,null,null,null,{"$f":"IF(入力ﾌｫｰﾑ!CE17=0,\"\",入力ﾌｫｰﾑ!CE17)","v":""}]
[]
[null,{"$f":"入力ﾌｫｰﾑ!B19","v":0},null,null,null,{"$f":"IF(入力ﾌｫｰﾑ!F19=0,\"\",入力ﾌｫｰﾑ!F19)","v":""},null,null,null,null,null,null,null,null,null,null,null,null,null,null,null,null,null,null,null,null,null,null,null,null,null,null,null,null,null,null,null,null,null,null,null,null,null,null,null,null,null,null,null,null,null,null,null,null,null,null,null,null,null,{"$f":"IF(入力ﾌｫｰﾑ!BH19=0,\"\",入力ﾌｫｰﾑ!BH19)","v":""},null,null,null,null,null,null,null,null,null,null,null,null,{"$f":"IF(入力ﾌｫｰﾑ!BU19=0,\"\",入力ﾌｫｰﾑ!BU19)","v":""},null,null,null,null,null,null,null,null,null,{"$f":"IF(入力ﾌｫｰﾑ!CE19=0,\"\",入力ﾌｫｰﾑ!CE19)","v":""}]
[]
[null,{"$f":"入力ﾌｫｰﾑ!B21","v":0},null,null,null,{"$f":"IF(入力ﾌｫｰﾑ!F21=0,\"\",入力ﾌｫｰﾑ!F21)","v":""},null,null,null,null,null,null,null,null,null,null,null,null,null,null,null,null,null,null,null,null,null,null,null,null,null,null,null,null,null,null,null,null,null,null,null,null,null,null,null,null,null,null,null,null,null,null,null,null,null,null,null,null,null,{"$f":"IF(入力ﾌｫｰﾑ!BH21=0,\"\",入力ﾌｫｰﾑ!BH21)","v":""},null,null,null,null,null,null,null,null,null,null,null,null,{"$f":"IF(入力ﾌｫｰﾑ!BU21=0,\"\",入力ﾌｫｰﾑ!BU21)","v":""},null,null,null,null,null,null,null,null,null,{"$f":"IF(入力ﾌｫｰﾑ!CE21=0,\"\",入力ﾌｫｰﾑ!CE21)","v":""}]
[]
[null,{"$f":"入力ﾌｫｰﾑ!B23","v":0},null,null,null,{"$f":"IF(入力ﾌｫｰﾑ!F23=0,\"\",入力ﾌｫｰﾑ!F23)","v":""},null,null,null,null,null,null,null,null,null,null,null,null,null,null,null,null,null,null,null,null,null,null,null,null,null,null,null,null,null,null,null,null,null,null,null,null,null,null,null,null,null,null,null,null,null,null,null,null,null,null,null,null,null,{"$f":"IF(入力ﾌｫｰﾑ!BH23=0,\"\",入力ﾌｫｰﾑ!BH23)","v":""},null,null,null,null,null,null,null,null,null,null,null,null,{"$f":"IF(入力ﾌｫｰﾑ!BU23=0,\"\",入力ﾌｫｰﾑ!BU23)","v":""},null,null,null,null,null,null,null,null,null,{"$f":"IF(入力ﾌｫｰﾑ!CE23=0,\"\",入力ﾌｫｰﾑ!CE23)","v":""}]
[]
[null,{"$f":"入力ﾌｫｰﾑ!B25","v":0},null,null,null,{"$f":"IF(入力ﾌｫｰﾑ!F25=0,\"\",入力ﾌｫｰﾑ!F25)","v":""},null,null,null,null,null,null,null,null,null,null,null,null,null,null,null,null,null,null,null,null,null,null,null,null,null,null,null,null,null,null,null,null,null,null,null,null,null,null,null,null,null,null,null,null,null,null,null,null,null,null,null,null,null,{"$f":"IF(入力ﾌｫｰﾑ!BH25=0,\"\",入力ﾌｫｰﾑ!BH25)","v":""},null,null,null,null,null,null,null,null,null,null,null,null,{"$f":"IF(入力ﾌｫｰﾑ!BU25=0,\"\",入力ﾌｫｰﾑ!BU25)","v":""},null,null,null,null,null,null,null,null,null,{"$f":"IF(入力ﾌｫｰﾑ!CE25=0,\"\",入力ﾌｫｰﾑ!CE25)","v":""}]
[]
[null,{"$f":"入力ﾌｫｰﾑ!B27","v":0},null,null,null,{"$f":"IF(入力ﾌｫｰﾑ!F27=0,\"\",入力ﾌｫｰﾑ!F27)","v":""},null,null,null,null,null,null,null,null,null,null,null,null,null,null,null,null,null,null,null,null,null,null,null,null,null,null,null,null,null,null,null,null,null,null,null,null,null,null,null,null,null,null,null,null,null,null,null,null,null,null,null,null,null,{"$f":"IF(入力ﾌｫｰﾑ!BH27=0,\"\",入力ﾌｫｰﾑ!BH27)","v":""},null,null,null,null,null,null,null,null,null,null,null,null,{"$f":"IF(入力ﾌｫｰﾑ!BU27=0,\"\",入力ﾌｫｰﾑ!BU27)","v":""},null,null,null,null,null,null,null,null,null,{"$f":"IF(入力ﾌｫｰﾑ!CE27=0,\"\",入力ﾌｫｰﾑ!CE27)","v":""}]
[]
[null,{"$f":"入力ﾌｫｰﾑ!B29","v":0},null,null,null,{"$f":"IF(入力ﾌｫｰﾑ!F29=0,\"\",入力ﾌｫｰﾑ!F29)","v":""},null,null,null,null,null,null,null,null,null,null,null,null,null,null,null,null,null,null,null,null,null,null,null,null,null,null,null,null,null,null,null,null,null,null,null,null,null,null,null,null,null,null,null,null,null,null,null,null,null,null,null,null,null,{"$f":"IF(入力ﾌｫｰﾑ!BH29=0,\"\",入力ﾌｫｰﾑ!BH29)","v":""},null,null,null,null,null,null,null,null,null,null,null,null,{"$f":"IF(入力ﾌｫｰﾑ!BU29=0,\"\",入力ﾌｫｰﾑ!BU29)","v":""},null,null,null,null,null,null,null,null,null,{"$f":"IF(入力ﾌｫｰﾑ!CE29=0,\"\",入力ﾌｫｰﾑ!CE29)","v":""}]
[]
[null,{"$f":"入力ﾌｫｰﾑ!B31","v":0},null,null,null,{"$f":"IF(入力ﾌｫｰﾑ!F31=0,\"\",入力ﾌｫｰﾑ!F31)","v":""},null,null,null,null,null,null,null,null,null,null,null,null,null,null,null,null,null,null,null,null,null,null,null,null,null,null,null,null,null,null,null,null,null,null,null,null,null,null,null,null,null,null,null,null,null,null,null,null,null,null,null,null,null,{"$f":"IF(入力ﾌｫｰﾑ!BH31=0,\"\",入力ﾌｫｰﾑ!BH31)","v":""},null,null,null,null,null,null,null,null,null,null,null,null,{"$f":"IF(入力ﾌｫｰﾑ!BU31=0,\"\",入力ﾌｫｰﾑ!BU31)","v":""},null,null,null,null,null,null,null,null,null,{"$f":"IF(入力ﾌｫｰﾑ!CE31=0,\"\",入力ﾌｫｰﾑ!CE31)","v":""}]
[]
[null,"計",null,null,null,null,null,null,null,null,null,null,null,null,null,null,null,null,null,null,null,null,null,null,null,null,null,null,null,null,null,null,null,null,null,null,null,null,null,null,null,null,null,null,null,null,null,null,null,null,null,null,null,null,null,null,null,null,null,null,null,null,null,null,null,null,null,null,null,null,null,null,null,null,null,null,null,null,null,null,null,null,{"$f":"IF(入力ﾌｫｰﾑ!CE33=0,\"\",入力ﾌｫｰﾑ!CE33)","v":""}]
[]
[null,"請求書の記入について",null,null,null,null,null,null,null,null,null,null,null,null,null,null,null,null,null,null,null,null,"ご不明な点は、弊社担当者とお打ち合わせの上、入力又は記入してください。"]
[null,"1.",null,"この請求書は工事ごとに、注文書別に記入して提出してください。(工事№・工事名は注文書を参照、又は弊社担当者へお問い合わせください。)"]
[null,"2.",null,"毎月、月末締めにて翌月第3営業日までに、弊社事務所または現場担当者へ提出してください。提出が遅れた場合は、次月のお支払いとなります。"]
[null,null,null,"(郵送の場合も同様にてお願いします。)"]
[null,"3.",null,"請求書は、電子入力または手書きとし、原本1部を弊社に提出してください。(①提出用での提出をお願いします。)"]
[null,"4.",null,"品目他、入力フォームの白欄は記入をお願いします。不明瞭な箇所がある場合は支払の保留、又は請求書の再提出をお願いする場合があります。"]
[null,null,null,"なお、注文№は、請求対象について注文書を受領している場合のみ記入してください。"]
[null,"5.",null,"手書きの場合、黒ボールペンを使用し枠内からはみ出さないよう鮮明に記入してください。熱で消えるタイプのボールペンは使用しないでください。"]
[null,"6.",null,"当月請求金額、内訳の金額等は税抜金額で記入し、消費税額を計算し消費税欄に記入してください。消費税額の円未満は切り捨てにて計算してください。"]
[null,"7.",null,"中間払い時は、累計出来高金額×90％、1,000円未満切り捨てにて計算してください。"]
[null,"8.",null,"出来高内訳書(弊社書式)は、2部添付してください。尚、未契約の小工事は、内訳を品目欄に記入してください。"]

{"sheet":"マニュアル","index":2,"n_rows":45,"n_cols":135,"rows_kept":45,"cut":false,"hidden":false,"merged":[[30,1,31,4],[30,5,31,58],[30,59,31,71],[30,72,31,81],[30,82,31,97],[32,1,33,81],[32,82,33,97],[26,1,27,4],[26,5,27,58],[26,59,27,71],[26,72,27,81],[26,82,27,97],[28,1,29,4],[28,5,29,58],[28,59,29,71],[28,72,29,81],[28,82,29,97],[22,1,23,4],[22,5,23,58],[22,59,23,71],[22,72,23,81],[22,82,23,97],[24,1,25,4],[24,5,25,58],[24,59,25,71],[24,72,25,81],[24,82,25,97],[18,1,19,4],[18,5,19,58],[18,59,19,71],[18,72,19,81],[18,82,19,97],[20,1,21,4],[20,5,21,58],[20,59,21,71],[20,72,21,81],[20,82,21,97],[14,1,15,4],[14,5,15,58],[14,59,15,71],[14,72,15,81],[14,82,15,97],[16,1,17,4],[16,5,17,58],[16,59,17,71],[16,72,17,81],[16,82,17,97],[9,136,10,145],[10,1,11,11],[10,12,11,16],[10,17,11,27],[10,28,11,71],[10,72,10,84],[10,85,11,97],[11,72,11,84],[11,100,12,103],[11,104,12,107],[11,132,12,135],[11,136,12,145],[12,1,13,4],[12,5,13,58],[12,59,13,71],[12,72,13,81],[12,82,13,97],[11,108,12,111],[11,112,12,115],[11,116,12,119],[11,120,12,123],[11,124,12,127],[11,128,12,131],[7,125,8,127],[8,1,9,16],[8,17,9,52],[8,54,9,58],[8,59,9,97],[9,100,10,119],[9,120,10,135],[7,107,8,109],[7,110,8,112],[7,113,8,115],[7,116,8,118],[7,119,8,121],[7,122,8,124],[6,1,7,16],[6,17,7,52],[6,54,7,58],[6,59,7,94],[6,95,7,97],[7,100,8,106],[3,126,4,127],[3,128,4,133],[3,134,4,135],[4,1,5,16],[4,17,5,52],[4,54,5,58],[4,59,5,97],[3,92,3,94],[3,95,3,97],[3,100,4,105],[3,106,4,117],[3,118,4,119],[3,120,4,125],[3,74,3,76],[3,77,3,79],[3,80,3,82],[3,83,3,85],[3,86,3,88],[3,89,3,91],[0,1,1,37],[0,39,1,42],[0,53,1,97],[3,1,3,37],[3,54,3,58],[3,59,3,61],[3,62,3,64],[3,65,3,67],[3,68,3,70],[3,71,3,73]]}
[null,"エヌテックサービス株式会社",null,null,null,null,null,null,null,null,null,null,null,null,null,null,null,null,null,null,null,null,null,null,null,null,null,null,null,null,null,null,null,null,null,null,null,null,null,"御中",null,null,null,null,null,null,null,null,null,null,null,null,null,"請求書(材料・経費)"]
[]
[]
[null,"下記のとおり請求致します。",null,null,null,null,null,null,null,null,null,null,null,null,null,null,null,null,null,null,null,null,null,null,null,null,null,null,null,null,null,null,null,null,null,null,null,null,null,null,null,null,null,null,null,null,null,null,null,null,null,null,null,null,"T",null,null,null,null,1,null,null,2,null,null,3,null,null,4,null,null,5,null,null,6,null,null,7,null,null,8,null,null,9,null,null,0,null,null,1,null,null,2,null,null,3,null,null,null,null,"請求日\n(西暦)",null,null,null,null,null,2022,null,null,null,null,null,null,null,null,null,null,null,"年",null,6,null,null,null,null,null,"月",null,30,null,null,null,null,null,"日"]
[null,"今回請求金額",null,null,null,null,null,null,null,null,null,null,null,null,null,null,null,{"$f":"IFERROR(R7+R9,\"\")","v":836349},null,null,null,null,null,null,null,null,null,null,null,null,null,null,null,null,null,null,null,null,null,null,null,null,null,null,null,null,null,null,null,null,null,null,null,null,"住所",null,null,null,null,"浜松市中区住吉五丁目26番36号"]
[]
[null,"Ｄ当月請求額",null,null,null,null,null,null,null,null,null,null,null,null,null,null,null,{"$f":"IF(CE33=0,\"\",CE33)","v":760318},null,null,null,null,null,null,null,null,null,null,null,null,null,null,null,null,null,null,null,null,null,null,null,null,null,null,null,null,null,null,null,null,null,null,null,null,"社名",null,null,null,null,"エヌテックサービス株式会社"]
[null,null,null,null,null,null,null,null,null,null,null,null,null,null,null,null,null,null,null,null,null,null,null,null,null,null,null,null,null,null,null,null,null,null,null,null,null,null,null,null,null,null,null,null,null,null,null,null,null,null,null,null,null,null,null,null,null,null,null,null,null,null,null,null,null,null,null,null,null,null,null,null,null,null,null,null,null,null,null,null,null,null,null,null,null,null,null,null,null,null,null,null,null,null,null,null,null,null,null,null,"工事№",null,null,null,null,null,null,2,null,null,0,null,null,2,null,null,5,null,null,0,null,null,0,null,null,1]
[null,"消費税",null,null,null,null,null,null,null,null,null,null,null,null,null,null,null,{"$f":"IFERROR(ROUNDDOWN(R7*10%,0),\"\")","v":76031},null,null,null,null,null,null,null,null,null,null,null,null,null,null,null,null,null,null,null,null,null,null,null,null,null,null,null,null,null,null,null,null,null,null,null,null,"TEL",null,null,null,null,"053-412-0251"]
[null,null,null,null,null,null,null,null,null,null,null,null,null,null,null,null,null,null,null,null,null,null,null,null,null,null,null,null,null,null,null,null,null,null,null,null,null,null,null,null,null,null,null,null,null,null,null,null,null,null,null,null,null,null,null,null,null,null,null,null,null,null,null,null,null,null,null,null,null,null,null,null,null,null,null,null,null,null,null,null,null,null,null,null,null,null,null,null,null,null,null,null,null,null,null,null,null,null,null,null,"取引先コード",null,null,null,null,null,null,null,null,null,null,null,null,null,null,null,null,null,null,null,"注文№"]
[null,"消費税率",null,null,null,null,null,null,null,null,null,null,0.1,null,null,null,null,"工事名称",null,null,null,null,null,null,null,null,null,null,"(夢)山下様　別荘新築工事",null,null,null,null,null,null,null,null,null,null,null,null,null,null,null,null,null,null,null,null,null,null,null,null,null,null,null,null,null,null,null,null,null,null,null,null,null,null,null,null,null,null,null,"ｴﾇﾃｯｸｻｰﾋﾞｽ㈱",null,null,null,null,null,null,null,null,null,null,null,null,"伊沢"]
[null,null,null,null,null,null,null,null,null,null,null,null,null,null,null,null,null,null,null,null,null,null,null,null,null,null,null,null,null,null,null,null,null,null,null,null,null,null,null,null,null,null,null,null,null,null,null,null,null,null,null,null,null,null,null,null,null,null,null,null,null,null,null,null,null,null,null,null,null,null,null,null,"現場担当者名",null,null,null,null,null,null,null,null,null,null,null,null,null,null,null,null,null,null,null,null,null,null,null,null,null,null,null,null,null,null,null,null,null,null,null,null,null,null,null,null,null,null,null,1,null,null,null,null,null,null,null,1,null,null,null,0,null,null,null,1]
[null,"月日",null,null,null,"品　　目",null,null,null,null,null,null,null,null,null,null,null,null,null,null,null,null,null,null,null,null,null,null,null,null,null,null,null,null,null,null,null,null,null,null,null,null,null,null,null,null,null,null,null,null,null,null,null,null,null,null,null,null,null,"数量",null,null,null,null,null,null,null,null,null,null,null,null,"単価",null,null,null,null,null,null,null,null,null,"金　額"]
[]
[null,"6/25",null,null,null,"SD295A　D-10",null,null,null,null,null,null,null,null,null,null,null,null,null,null,null,null,null,null,null,null,null,null,null,null,null,null,null,null,null,null,null,null,null,null,null,null,null,null,null,null,null,null,null,null,null,null,null,null,null,null,null,null,null,382,null,null,null,null,null,null,null,null,null,null,null,null,109,null,null,null,null,null,null,null,null,null,41638]
[]
[null,null,null,null,null,"　〃　　D-13",null,null,null,null,null,null,null,null,null,null,null,null,null,null,null,null,null,null,null,null,null,null,null,null,null,null,null,null,null,null,null,null,null,null,null,null,null,null,null,null,null,null,null,null,null,null,null,null,null,null,null,null,null,5888,null,null,null,null,null,null,null,null,null,null,null,null,107,null,null,null,null,null,null,null,null,null,630016]
[]
[null,null,null,null,null,"SD345 　D-19",null,null,null,null,null,null,null,null,null,null,null,null,null,null,null,null,null,null,null,null,null,null,null,null,null,null,null,null,null,null,null,null,null,null,null,null,null,null,null,null,null,null,null,null,null,null,null,null,null,null,null,null,null,358,null,null,null,null,null,null,null,null,null,null,null,null,108,null,null,null,null,null,null,null,null,null,38664]
[]
[null,null,null,null,null,"運搬費",null,null,null,null,null,null,null,null,null,null,null,null,null,null,null,null,null,null,null,null,null,null,null,null,null,null,null,null,null,null,null,null,null,null,null,null,null,null,null,null,null,null,null,null,null,null,null,null,null,null,null,null,null,"1式",null,null,null,null,null,null,null,null,null,null,null,null,null,null,null,null,null,null,null,null,null,null,50000]
[]
[]
[]
[]
[]
[]
[]
[]
[]
[]
[]
[null,"計",null,null,null,null,null,null,null,null,null,null,null,null,null,null,null,null,null,null,null,null,null,null,null,null,null,null,null,null,null,null,null,null,null,null,null,null,null,null,null,null,null,null,null,null,null,null,null,null,null,null,null,null,null,null,null,null,null,null,null,null,null,null,null,null,null,null,null,null,null,null,null,null,null,null,null,null,null,null,null,null,{"$f":"SUM(CE15:CE31)","v":760318}]
[]
[null,"請求書の記入について",null,null,null,null,null,null,null,null,null,null,null,null,null,null,null,null,null,null,null,"ご不明な点は、弊社担当者とお打ち合わせの上、入力又は記入してください。"]
[null,"1.",null,"この請求書は工事ごとに、注文書別に記入して提出してください。(工事№・工事名は注文書を参照、又は弊社担当者へお問い合わせください。)"]
[null,"2.",null,"毎月、月末締めにて翌月第3営業日までに、弊社事務所または現場担当者へ提出してください。提出が遅れた場合は、次月のお支払いとなります。"]
[null,null,null,"(郵送の場合も同様にてお願いします。)"]
[null,"3.",null,"請求書は、電子入力または手書きとし、原本1部を弊社に提出してください。(①提出用での提出をお願いします。)"]
[null,"4.",null,"品目他、白欄は記入をお願いします。不明瞭な箇所がある場合は支払の保留、又は請求書の再提出をお願いする場合があります。"]
[null,null,null,"なお、注文№は、請求対象について注文書を受領している場合のみ記入してください。"]
[null,"5.",null,"手書きの場合、黒ボールペンを使用し枠内からはみ出さないよう鮮明に記入してください。"]
[null,null,null,"熱で消えるタイプのボールペンは使用しないでください。"]
[null,"6.",null,"オレンジの欄は自動計算となります。",null,null,null,null,null,null,null,null,null,null,null,null,null,null,null,null,null,null,null,null,null,null,null,null,null,null,null,null,null,"①消費税は、切り捨てにて計算しています。"]
[null,"7.",null,"出来高内訳書(弊社書式)は、2部添付してください。尚、未契約の小工事は、工事内訳を工事内容欄に入力又は記入してください。"]